Cogmind - Beta 16.1 @@@ ROGUE MODE // 2026.03.11 @ 19:05:17 Player: Lain Result: Destroyed by S-27 Virus with Autogun Performance ------------- Evolutions (3) 1500 Regions Visited (5) 1000 Robots Destroyed (48) 240 Value Destroyed (1354) 1354 Prototype IDs (3) 60 Alien Tech Used (0) 0 Bonus (200) 200 TOTAL SCORE: 4354 Bonus ------- Entered Garrisons 200 Cogmind --------- Core Integrity 0/700 Matter 300/300 Energy 98/100 System Corruption 0% Temperature Cool (0) Movement Core (50) Location -7/Garrison Parts ------- > --- POWER (2) -------- (None) > --- PROPULSION (4) --- (None) > --- UTILITY (3) ------ Advanced Targeting Computer > --- WEAPON (4) ------- (None) > --- INVENTORY (5) ---- Hardened Medium Armor Plating Peak State ------------ > --- POWER ------------ Heavy Ion Engine Heavy Ion Engine > --- PROPULSION ------- Advanced Treads Armored Wheel Armored Wheel Armored Wheel > --- UTILITY ---------- Improved Sensor Array Advanced Targeting Computer Advanced Targeting Computer > --- WEAPON ----------- Improved Assault Rifle Improved Assault Rifle > --- INVENTORY -------- Deuterium Engine Hardened Medium Armor Plating Heavy Assault Rifle Improved Assault Rifle Concussive RPG [Rating: 31] Favorites ----------- Power Heavy Ion Engine Engine Heavy Ion Engine Power Core Enhanced Nuclear Core Propulsion Armored Wheel Treads Improved Treads Leg VSS Leg Wheel Armored Wheel Utility Advanced Targeting Computer Device Sensor Array Storage Small Storage Unit Processor Advanced Targeting Computer Protection Light Armor Plating Weapon Improved Assault Rifle Energy Gun EM Pulse Gun Ballistic Gun Improved Assault Rifle Launcher Grenade Launcher Build | -11 -10 -9 -8 -7 -7 ------- Run | Yrd Mat Mat Mat Fac Gar Slots Evolved 6 | . . 2 2 2 . Power 1 | . . . 1 . . Propulsion 2 | . . 2 . . . Utility 1 | . . . 1 . . Weapon 2 | . . . . 2 . Parts Attached 53 | 7 11 14 19 2 . Power 7 | 1 1 1 3 1 . Engine 6 | 1 1 1 3 . . Core 1 | . . . . 1 . Reactor . | . . . . . . Propulsion 20 | 3 5 6 5 1 . Treads 9 | 1 3 2 3 . . Leg 1 | . . . . 1 . Wheel 10 | 2 2 4 2 . . Hover . | . . . . . . Flight . | . . . . . . Utility 10 | 1 1 4 4 . . Device 4 | . . 2 2 . . Storage 1 | 1 . . . . . Processor 3 | . 1 . 2 . . Hackware . | . . . . . . Protection 2 | . . 2 . . . Artifact . | . . . . . . Weapon 16 | 2 4 3 7 . . Energy Gun 5 | 2 2 1 . . . Energy Cannon . | . . . . . . Ballistic Gun 9 | . 1 2 6 . . Ballistic Cannon . | . . . . . . Launcher 2 | . 1 . 1 . . Special Weapon . | . . . . . . Impact Weapon . | . . . . . . Slashing Weapon . | . . . . . . Piercing Weapon . | . . . . . . Special Melee Weapon . | . . . . . . Unidentified Prototypes 3 | . . . 2 1 . Corrupted Parts 1 | . . 1 . . . System Corruption 3 | . . 3 . . . Parts Lost 28 | . 5 6 11 . 6 Power 4 | . . 1 2 . 1 Propulsion 12 | . 2 1 6 . 3 Utility 6 | . . 3 1 . 2 Weapon 6 | . 3 1 2 . . Highest Loss Streak 8 | . 2 5 8 . 6 To Critical Strikes . | . . . . . . Average Backups 3 | 3 5 3 3 1 1 Power . | 1 . . . . . Propulsion 1 | 1 3 3 . . . Utility . | . 1 . . 1 1 Weapon . | . . . 2 . . Tool/Special . | . . . . . . Unused Backups 9 | . 5 1 2 . 1 Power 2 | . 1 1 . . . Propulsion 3 | . 3 . . . . Utility 2 | . 1 . . . 1 Weapon 2 | . . . 2 . . Tool/Special . | . . . . . . Average Slot Usage (%) 88 | . 97 98 93 44 48 Engine 12 | . 14 10 17 . . Treads 15 | . 15 22 12 15 13 Wheel 15 | . 11 21 21 . . Device 7 | . . 11 13 7 6 Storage 4 | . 14 . . . . Processor 8 | . 12 . 7 15 15 Protection 3 | . . 8 4 . . Energy Gun 7 | . 17 10 . . . Ballistic Gun 10 | . 7 11 16 . . Peak Build Rating 31 | 6 11 16 31 23 23 Average Rating 16 | 3 6 15 24 18 20 On Entrance 11 | . 6 11 16 15 23 Avg Prop Armor Cover (%) 19 | . . 15 12 32 31 Naked Turns . | . . . . . . Heaviest Build 27 | 14 15 17 27 9 9 Greatest Support 48 | 26 46 24 48 40 12 Greatest Overweight (x) 1 | . 1 . 1 . . Average Overweight (x) . | . . . . . . Largest Inventory Capacity 8 | 8 8 8 5 5 5 Average Capacity 5 | 7 8 5 5 5 5 Most Carried 8 | 6 8 7 5 2 1 Average Carried 3 | 3 5 3 3 1 1 Final Capacity 8 | 8 8 5 5 5 5 Final Carried 8 | 3 8 4 1 1 1 Class Distribution -------------------- 92% | Mutant 7% | Scavenger-Mutant Dominant Class ---------------- Mutant | -10/Materials Mutant | -9/Materials Mutant | -8/Materials Mutant | -7/Factory Mutant | -7/Garrison Resources | -11 -10 -9 -8 -7 -7 ----------- Run | Yrd Mat Mat Mat Fac Gar Matter Collected 1254 | 106 281 252 615 . . Remotely . | . . . . . . Salvage Created 1900 | . 497 515 888 . . Parts 98 | . 27 29 42 . . Haulers Intercepted 4 | . 1 . 3 . . Recyclers Shooed 2 | . . . 2 . . Parts Field Recycled . | . . . . . . Retrieved Matter . | . . . . . . Parts Self-Destructed . | . . . . . . Prevented . | . . . . . . Parts Restored . | . . . . . . Kills | -11 -10 -9 -8 -7 -7 ------- Run | Yrd Mat Mat Mat Fac Gar Combat Hostiles Destroyed 35 | . 7 13 15 . . Guns 32 | . 4 13 15 . . AOE 3 | . 3 . . . . Classes Destroyed 11 | . 7 2 2 . . Worker 1 | . 1 . . . . Builder 2 | . 1 . 1 . . Tunneler 1 | . . . 1 . . Hauler 4 | . 1 . 3 . . Mechanic 1 | . 1 . . . . Watcher 4 | . 3 1 . . . Swarmer 9 | . 3 4 2 . . Cutter 2 | . . . 2 . . Grunt 14 | . 4 3 7 . . Brawler 1 | . . 1 . . . Sentry 9 | . . 5 4 . . Best Kill Streak 5 | . 5 4 4 . . Combat Bots Only 4 | . 3 4 3 . . Max Kills in Single Turn 2 | . 1 1 2 . . Gunslinging 1 | . . . 1 . . Exploded 1 | . 1 . . . . Melee . | . . . . . . Uniques/NPCs Destroyed . | . . . . . . Combat | -11 -10 -9 -8 -7 -7 -------- Run | Yrd Mat Mat Mat Fac Gar Hostile Shots Fired 533 | . 29 131 208 . 165 Missed 156 | . 5 26 51 . 74 Hits 377 | . 24 105 157 . 91 Melee 6 | . . . 6 . . Projectile 371 | . 24 105 151 . 91 AOE 1 | . . . 1 . . Critical Strikes 14 | . 1 . 13 . . Damage Taken 5658 | . 400 1317 2702 . 1239 Core 1369 | . 88 112 458 . 711 Absorbed by Shields 127 | . . 55 . . 72 Regen/Repaired (Parts) 198 | . . . 198 . . Core Remaining (%) 63 | 100 64 72 16 . . Volleys Fired 193 | . 45 66 82 . . Largest 2 | . 2 2 2 . . Hottest 85 | . 80 85 46 . . Shots Fired 323 | . 78 114 131 . . Gun 317 | . 73 114 130 . . Cannon . | . . . . . . Launcher 6 | . 5 . 1 . . Special . | . . . . . . Kinetic 207 | . 13 64 130 . . Thermal 50 | . . 50 . . . Explosive 6 | . 5 . 1 . . Electromagnetic 60 | . 60 . . . . Robot Hit Streak 13 | . 13 12 12 . . Robot Miss Streak 3 | . 2 3 2 . . Penetration Max . | . . . . . . Secondary Targets 3 | . . 2 1 . . Max Gunslinging Chain 1 | . . 1 1 . . Shots Hit Robots 229 | . 50 78 101 . . Core Hits 89 | . 22 27 40 . . Critical Kills . | . . . . . . Critical Parts Destroyed 1 | . . . 1 . . Critical Strikes 3 | . 1 1 1 . . Burn 1 | . . 1 . . . Destroy 1 | . . . 1 . . Corrupt 1 | . 1 . . . . Melee Attacks . | . . . . . . Impact . | . . . . . . Slashing . | . . . . . . Piercing . | . . . . . . Sneak Attacks . | . . . . . . Combat Hostiles . | . . . . . . Follow-up Attacks . | . . . . . . Damage Inflicted 3616 | . 901 1082 1633 . . Guns 3108 | . 602 941 1565 . . Cannons 8 | . . . 8 . . Explosions 477 | . 297 140 40 . . Melee . | . . . . . . Ramming 23 | . 2 1 20 . . Kinetic 2068 | . 66 437 1565 . . Thermal 545 | . 41 504 . . . Explosive 296 | . 256 . 40 . . Electromagnetic 676 | . 536 140 . . . Impact 8 | . . . 8 . . Slashing . | . . . . . . Piercing . | . . . . . . Highest Corruption 3 | . . 3 2 . . Average Corruption 2 | . . 3 2 . . Corruption Purged . | . . . . . . Corruption Blocked . | . . . . . . Effects 7 | . . 4 3 . . Message Errors 1 | . . 1 . . . Matter Fused 2 | . . . 2 . . Energy Discharges 2 | . . 1 1 . . Data Loss (minor) 2 | . . 2 . . . Overload Shots . | . . . . . . Overflow Damage 47 | . 47 . . . . Projectiles . | . . . . . . Explosions 47 | . 47 . . . . Melee . | . . . . . . Knockbacks 1 | . . . 1 . . Impact 1 | . . . 1 . . Kinetic . | . . . . . . Secondary . | . . . . . . Self-Inflicted Damage 155 | . 124 . 31 . . Shots 3 | . 2 . 1 . . Rammed 9 | . 1 1 7 . . Targets Rammed 9 | . 1 1 7 . . Kicked . | . . . . . . Crushed . | . . . . . . Highest Temperature 354 | . 147 354 43 . . Average Temperature 74 | . 43 108 14 . . Received Heat Transfer 1587 | . 126 420 1017 . 24 Effects 4 | . . 4 . . . Energy Bleed 1 | . . 1 . . . Interference 2 | . . 2 . . . Damage (minor) 1 | . . 1 . . . Siege Activations . | . . . . . . Martial Activations . | . . . . . . Shielding Activations . | . . . . . . Robots Disrupted . | . . . . . . Combat Hostiles . | . . . . . . Robots Corrupted . | . . . . . . Combat Hostiles . | . . . . . . Parts Fried 5 | . 4 1 . . . Impact Corruptions . | . . . . . . Robots Melted . | . . . . . . Combat Hostiles . | . . . . . . Parts Melted 2 | . . 2 . . . Heat Transferred 1295 | . . 1295 . . . Parts Sabotaged . | . . . . . . Parts Stolen . | . . . . . . Parts Stripped . | . . . . . . Power Chain Reactions 1 | . 1 . . . . Alert | -11 -10 -9 -8 -7 -7 ------- Run | Yrd Mat Mat Mat Fac Gar Maximum Alert Level 1 | . . . 1 . . Low Security (%) 98 | 100 100 100 96 100 100 Level 1 1 | . . . 3 . . Level 2 . | . . . . . . Level 3 . | . . . . . . Level 4 . | . . . . . . Level 5 . | . . . . . . High Security . | . . . . . . Max Security . | . . . . . . Peak Influence 226 | . 187 112 226 81 10 Initial 81 | . . 3 40 81 10 Average 56 | . 89 35 58 49 8 Influence Increases 1326 | . 391 409 522 4 . Destroy 0b10 Robot/C 700 | . 140 260 300 . . Destroy 0b10 Robot/NC 70 | . 40 5 25 . . Destroy Leader 196 | . 38 72 86 . . Successful Hack 53 | . 12 27 10 4 . Disable Machine 135 | . 75 45 15 . . Destroy Structure 52 | . 41 . 11 . . Partial Spotted 15 | . 15 . . . . Lose Combat Pursuer 105 | . 30 . 75 . . Influence Decreases 1326 | . 383 321 439 168 15 Entered New Map 164 | . . 5 56 98 5 Time Decay 902 | . 333 226 273 70 . Lost Part 220 | . 50 50 110 . 10 Purge Threat 40 | . . 40 . . . Squads Dispatched 8 | . 1 2 4 1 . Investigation 1 | . . 1 . . . Extermination . | . . . . . . Reinforcement 7 | . 1 1 4 1 . Assault . | . . . . . . Garrison . | . . . . . . Intercept . | . . . . . . Searches Triggered . | . . . . . . Construction Impeded 1 | . . . 1 . . Haulers Reinforced . | . . . . . . Active Scanning Responses . | . . . . . . Cargo Convoy Interrupts . | . . . . . . Stealth | -11 -10 -9 -8 -7 -7 --------- Run | Yrd Mat Mat Mat Fac Gar Distress Signals 2 | . 1 1 . . . Communications Jammed . | . . . . . . Distress Signals . | . . . . . . Times Spotted 74 | . 13 19 31 1 10 Peak Tracking Total 11 | . 4 5 6 1 11 Tactical Retreats 5 | . 1 . 4 . . Traps | -11 -10 -9 -8 -7 -7 ------- Run | Yrd Mat Mat Mat Fac Gar Traps Triggered 3 | . . . 1 . 2 Indirectly . | . . . . . . Trap Hack Attempts . | . . . . . . Triggered . | . . . . . . Disarmed . | . . . . . . Reprogrammed . | . . . . . . Reused . | . . . . . . Traps Extracted . | . . . . . . Installed . | . . . . . . Triggered . | . . . . . . Machines | -11 -10 -9 -8 -7 -7 ---------- Run | Yrd Mat Mat Mat Fac Gar Machines Disabled 9 | . 5 3 1 . . Max in Single Turn 2 | . 2 2 1 . . Machines Repaired . | . . . . . . Machines Dismantled . | . . . . . . Machines Sabotaged . | . . . . . . Overloaded Fab Kills . | . . . . . . Hacking | -11 -10 -9 -8 -7 -7 --------- Run | Yrd Mat Mat Mat Fac Gar Machines Accessed 13 | . 4 4 3 2 . Terminals 7 | . 3 2 2 . . Fabricators . | . . . . . . Repair Stations 1 | . . . 1 . . Recycling Units 2 | . 1 1 . . . Scanalyzers 2 | . . 1 . 1 . Garrison Access 1 | . . . . 1 . Total Hacks 37 | . 8 12 14 3 . Successful 20 | . 3 7 9 1 . Failed 17 | . 5 5 5 2 . Catastrophic 3 | . 1 1 . 1 . Database Lockouts . | . . . . . . Manual . | . . . . . . Terminals 15 | . 6 4 5 . . Fabricators . | . . . . . . Repair Stations 9 | . . . 9 . . Recycling Units 4 | . 2 2 . . . Scanalyzers 7 | . . 6 . 1 . Garrison Access 2 | . . . . 2 . Terminal Hacks 5 | . 2 2 1 . . Unreport Threat 1 | . . 1 . . . Assault Status 1 | . 1 . . . . Zone Layout 3 | . 1 1 1 . . Fabricator Hacks . | . . . . . . Repair Station Hacks 8 | . . . 8 . . Scan Component 4 | . . . 4 . . Repair 4 | . . . 4 . . Recycling Unit Hacks 2 | . 1 1 . . . Report Inventory 2 | . 1 1 . . . Scanalyzer 4 | . . 4 . . . Insert Component 1 | . . 1 . . . Analyze 1 | . . 1 . . . Retrieve Study 2 | . . 2 . . . Garrison Access Hacks 1 | . . . . 1 . Unlock Access 1 | . . . . 1 . Unauthorized Hacks . | . . . . . . Terminals . | . . . . . . Fabricators . | . . . . . . Repair Stations . | . . . . . . Recycling Units . | . . . . . . Scanalyzers . | . . . . . . Garrison Access . | . . . . . . Data Cores Recovered . | . . . . . . Used . | . . . . . . Hacking Detections 9 | . 3 4 1 1 . Full Trace Events 1 | . . 1 . . . Feedback Events . | . . . . . . Feedback Blocked . | . . . . . . Robot Schematics Acquired . | . . . . . . Robots Built . | . . . . . . Authchips . | . . . . . . Time . | . . . . . . Total Robot Build Rating . | . . . . . . Part Schematics Acquired 1 | . . 1 . . . Parts Built . | . . . . . . Authchips . | . . . . . . Time . | . . . . . . Total Part Build Rating . | . . . . . . Part Studies Acquired 2 | . . 2 . . . Parts Repaired 4 | . . . 4 . . Time 116 | . . . 116 . . Parts Recycled . | . . . . . . Recycled Matter . | . . . . . . Retrieved Matter . | . . . . . . Retrieved Components . | . . . . . . Parts Scanalyzed 1 | . . 1 . . . Part Schematics Acquired 1 | . . 1 . . . Parts Damaged . | . . . . . . Bothacking | -11 -10 -9 -8 -7 -7 ------------ Run | Yrd Mat Mat Mat Fac Gar Used RIF Installer . | . . . . . . Robots Hacked . | . . . . . . Non-combat . | . . . . . . Combat . | . . . . . . Robot Hacks Applied . | . . . . . . Relay Couplers Released . | . . . . . . Fabnet Peak Effective % . | . . . . . . Robots Rewired . | . . . . . . Allies Hacked . | . . . . . . Hacks Repelled . | . . . . . . Allies | -11 -10 -9 -8 -7 -7 -------- Run | Yrd Mat Mat Mat Fac Gar Total Allies . | . . . . . . Largest Group . | . . . . . . Highest-Rated Group . | . . . . . . Highest-Rated Ally . | . . . . . . Total Orders . | . . . . . . Ally Attacks . | . . . . . . Total Damage . | . . . . . . Kills . | . . . . . . Allies Corrupted . | . . . . . . Allies Melted . | . . . . . . Intel | -11 -10 -9 -8 -7 -7 ------- Run | Yrd Mat Mat Mat Fac Gar Active Infowar (turns) 1796 | . . 572 869 145 210 Sensors 1796 | . . 572 869 145 210 Robot Analysis Total . | . . . . . . Derelict Logs Recovered . | . . . . . . Drone Launches . | . . . . . . Drone Recoveries . | . . . . . . Exploration | -11 -10 -9 -8 -7 -7 ------------- Run | Yrd Mat Mat Mat Fac Gar Turns Passed 2815 | 45 815 671 896 145 243 Spaces Moved 1828 | 39 476 456 468 118 271 Core 38 | 11 . . . . 27 Treads 293 | . 200 5 45 43 . Legs 319 | . . . . 75 244 Wheels 1178 | 28 276 451 423 . . Hover . | . . . . . . Flight . | . . . . . . Fastest Speed 50 | 50 80 80 80 90 50 Average Speed 97 | 74 116 81 96 119 86 Slowest Speed 225 | 90 160 160 225 170 90 Overloaded Moves . | . . . . . . Propulsion Burnouts . | . . . . . . Robots Hopped . | . . . . . . Potential Cave-ins . | . . . . . . Cave-ins Triggered . | . . . . . . Exploration Rate (%) 30 | 3 84 29 33 5 30 Regions Visited 5 Branch Regions . Pre-discovered Areas . | . . . . . . Known Exits Taken 1 | . . . . 1 . Unknown Exits Taken 4 | 1 1 1 1 . . Scrap Searched . | . . . . . . Spaces Dug . | . . . . . . Terrain Destroyed 57 | . 49 . 8 . . Melee . | . . . . . . Projectile . | . . . . . . AOE 57 | . 49 . 8 . . Terrain Rammed . | . . . . . . Walls Destroyed . | . . . . . . Machines Disabled . | . . . . . . Actions | -11 -10 -9 -8 -7 -7 --------- Run | Yrd Mat Mat Mat Fac Gar Total 2554 | 55 663 649 784 122 281 Wait 354 | . 95 93 166 . . Move 1822 | 38 475 455 467 118 269 Hop . | . . . . . . Pick Up 65 | 9 20 11 23 2 . Fast Attach 3 | . 2 . 1 . . Attach 38 | 7 6 8 15 2 . Detach 1 | 1 . . . . . Swap 23 | . 5 8 10 . . Drop 31 | . 11 7 13 . . Fire 193 | . 45 66 82 . . Melee . | . . . . . . Ram 6 | . 1 1 4 . . Kick . | . . . . . . Crush 3 | . . . 3 . . Escape Stasis 12 | . . . . . 12 Rewire 3 | . 3 . . . . Trap . | . . . . . . Miscellaneous . | . . . . . . Route ------- -11/Scrapyard -10/Materials (discovered 4 exits: *Mat x3 / [*Min]) -9/Materials -8/Materials -7/Factory -7/Garrison (discovered 2 exits: [*Fac x2]) History --------- Turn | Location | Event 9 | -11/Scrapyard | Discovered new exit (range 15) 46 | -11/Scrapyard | Entered Materials 164 | -10/Materials | Discovered new exit (range 4) 303 | -10/Materials | Build established: Mutant 384 | -10/Materials | Discovered new exit (range 11) 477 | -10/Materials | Discovered new exit (range 16) 693 | -10/Materials | Discovered new exit (range 16) 861 | -10/Materials | Entered another Materials area 861 | -9/Materials | Evolved 2 slots: Propulsion x2 1348 | -9/Materials | Lost 5 parts (1p1n2u1w) 1507 | -9/Materials | Discovered new exit (range 9) 1532 | -9/Materials | Entered another Materials area 1532 | -8/Materials | Evolved 2 slots: Power x1, Utility x1 1691 | -8/Materials | Repaired Imp. Treads+ 1723 | -8/Materials | Repaired Arm. Wheel+ 1751 | -8/Materials | Repaired Lgt. Armor Plating 1778 | -8/Materials | Repaired Sensor Array 2278 | -8/Materials | Discovered new exit (range 8) 2365 | -8/Materials | Core integrity fell below 50% 2423 | -8/Materials | Core integrity fell below 20% 2428 | -8/Materials | Entered Factory 2428 | -7/Factory | Evolved 2 slots: Weapon x2 2457 | -7/Factory | Lost 8 parts (2p4n2w) 2573 | -7/Factory | Identified exit to Garrison 2573 | -7/Factory | Entered Garrison 2638 | -7/Garrison | Discovered new exit (range 13) 2685 | -7/Garrison | Triggered checkpoint 2717 | -7/Garrison | Attempted to access garrison exit controls, blocked by remote lockdown 2778 | -7/Garrison | Triggered checkpoint 2782 | -7/Garrison | Triggered checkpoint 2784 | -7/Garrison | Triggered checkpoint 2802 | -7/Garrison | Core integrity fell below 50% 2813 | -7/Garrison | Core integrity fell below 20% 2813 | -7/Garrison | Discovered new exit (range 15) 2816 | -7/Garrison | Destroyed by S-27 Virus with Autogun Last Messages --------------- 02783_ Imp. Sensor Array destroyed. 02784_ Beams of light sweep through the air. An alarm sounds. 02786_ Enh. Nuclear Core destroyed. 02789_ Arm. Treads destroyed. 02795_ VSS Leg destroyed. 02801_ Triggered Stasis Trap. 02801_ A bubble of rippling energy engulfs the area. 02801_ Field strength at 94. 02802_ Field strength at 83. 02803_ Field strength at 77. 02804_ Field strength at 62. 02805_ Field strength at 53. 02806_ Field strength at 34. 02807_ Field strength at 28. 02808_ Field strength at 18. 02809_ Field strength at 4. 02809_ S-27 Virus destroyed. 02809_ Stasis field depleted. 02813_ EXIT=FOUND 02815_ Adv. Targeting Computer destroyed. Map ----- +----------------------------------------------------+ | | | | | | | | | | | | | | | ?????????????????????????????????????????????????? | | ?????????????????????????????????????????????????? | | ?????????????????????????????????????????????????? | | ?????????????????????????????????????????????????? | | ?????????????????????????????????????????????????? | | ?????????????????????????????????????????????????? | | ?????????????????????????????????????????????????? | | ?????????????????????????????????????????????????? | | ?????????????????????????#####???????????????????? | | ????????????????????????? ???????????????????? | | ????????????????????????#